fUSD/lending_fUSD_20240531
["ID","MTS","AMOUNT","RATE_DAILY","PERIOD"]
[328328945,1717170646052,-301.0993059,0.00033288,4]
[328328947,1717170646500,-1806.57364902,0.00033288,4]
[328328948,1717170646512,-1572.40113505,0.00033288,4]
[328328949,1717170646528,-1039.42793457,0.00033288,4]
[328328950,1717170646540,-1128.34763278,0.00033288,4]
[328328951,1717170646551,-1347.98,0.00033288,4]
[328328967,1717170852855,173.62,0.00029032,120]
[328328973,1717171163103,-410.5918966,0.00014076,2]
[328328974,1717171163126,-326.54945648,0.00014077,2]
[328328975,1717171163148,-327.42148466,0.00014078,2]
[328328976,1717171163170,-2226.71420873,0.00014078,2]
[328328977,1717171163192,-155.0,0.00014079,2]
[328328978,1717171163216,-855.23945507,0.0001408,2]
[328328979,1717171163238,-7530.16194666,0.0001408,2]
[328328980,1717171163261,-5060.3215518,0.00014081,2]
[328328981,1717171174163,900.26,0.00030137,30]
[328328982,1717171231522,953.32923207,0.00013974,2]
[328328983,1717171275040,2608.44594019,0.00013695,2]
[328328984,1717171287041,1345.18750747,0.00013695,2]
[328328985,1717171291966,153.86904226,0.0001397,2]
[328328986,1717171536178,-263.41034671,0.00014051,2]
[328328987,1717171536199,-155.0,0.00014052,2]
[328328988,1717171536221,-201.31353093,0.00014052,2]
[328328989,1717171536245,-894.00933784,0.00014052,2]
[328328990,1717171629119,-206.79256726,0.00014046,2]
[328328991,1717171629141,-536.80409008,0.00014047,2]
[328328992,1717171629163,-136.07551701,0.00014048,2]
[328328993,1717171663200,1357.31573228,0.00013949,2]
[328328994,1717171775851,-150.0,0.00014044,2]
[328328995,1717171775874,-10543.64368906,0.00014044,2]
[328328996,1717171775896,-3237.45666033,0.00014044,2]
[328328997,1717171775917,-1181.55417799,0.00014045,2]
[328328998,1717171775939,-7528.26513526,0.00014045,2]
[328328999,1717171775960,-268.78049174,0.00014045,2]
[328329000,1717171775982,-940.98324125,0.00014047,2]
[328329001,1717171776003,-333.64176052,0.00014393,2]
[328329002,1717171776022,-155.0,0.00014394,2]
[328329003,1717171776043,-4436.90604673,0.00014395,2]
[328329004,1717171776064,-1283.98392734,0.00014396,2]
[328329005,1717171776087,-150.99,0.000144,2]
[328329006,1717171776107,-184.11,0.000144,2]
[328329007,1717171776127,-499.99,0.00014406,2]
[328329008,1717171776149,-17228.62,0.00014406,2]
[328329009,1717171776169,-614.7145,0.00014411,2]
[328329010,1717171776190,-1388.97892771,0.0001451,2]
[328329011,1717171776214,-544.85678975,0.0001451,2]
[328329012,1717171776235,-298.92868013,0.00014511,2]
[328329013,1717171776256,-155.0,0.00014511,2]
[328329053,1717171833471,-282.43739626,0.0001451,2]
[328329055,1717171833481,-150.0,0.00014511,2]
[328329056,1717171833490,-263.42722589,0.00014511,2]
[328329057,1717171833499,-489.72508707,0.00015446,2]
[328329058,1717171833509,-210.0,0.00015448,2]
[328329059,1717171833519,-613.41729078,0.00019451,2]
[328329060,1717171833534,-17612.80814467,0.00019451,2]
[328329061,1717171833545,-863.22198171,0.0002,2]
[328329062,1717171833554,-7600.0,0.00022799,2]
[328329063,1717171833564,-2090.0,0.000228,3]
[328329064,1717171833574,-157.43,0.00024384,2]
[328329065,1717171833583,-1148.58,0.000247,2]
[328329066,1717171833593,-1487.62397448,0.00024891,2]
[328329067,1717171833608,-1271.04451084,0.00024891,2]
[328329068,1717171833619,-6799.99991153,0.00024891,2]
[328329069,1717171833630,-670.67,0.00024891,2]
[328329070,1717171833646,-1031.71806703,0.00024891,2]
[328329071,1717171833681,-3063.43254628,0.00024891,2]
[328329072,1717171833690,-1022.20435871,0.00024892,2]
[328329073,1717171833701,-6705.35999999,0.00024892,2]
[328329074,1717171833753,-577.1745794,0.00024892,2]
[328329075,1717171833764,-1101.00994531,0.00024892,2]
[328329076,1717171833824,-14494.25111659,0.00024892,2]
[328329077,1717171833833,-500.0,0.00025,4]
[328329078,1717171833843,-250.0,0.00025642,2]
[328329079,1717171833852,-250.0,0.00026001,2]
[328329080,1717171833862,-319.49,0.00026003,2]
[328329081,1717171833871,-732.62,0.00026141,2]
[328329082,1717171833880,-181.73,0.0002649,2]
[328329083,1717171833891,-181.73,0.00026563,2]
[328329084,1717171833901,-181.73,0.00026636,2]
[328329085,1717171833910,-3925.0,0.000267,5]
[328329086,1717171833919,-181.73,0.00026708,2]
[328329087,1717171833931,-181.73,0.00026781,2]
[328329088,1717171833940,-181.73,0.00026854,2]
[328329089,1717171833950,-181.73,0.00026926,2]
[328329091,1717171833959,-181.73,0.00026999,2]
[328329093,1717171833969,-181.73,0.00027072,2]
[328329095,1717171833978,-181.73,0.00027144,2]
[328329096,1717171833987,-181.73,0.00027217,2]
[328329097,1717171833997,-181.73,0.0002729,2]
[328329098,1717171834006,-181.73,0.00027362,2]
[328329099,1717171834015,-181.73,0.00027435,2]
[328329100,1717171834025,-1148.58,0.0002744,2]
[328329101,1717171834034,-181.73,0.00027508,2]
[328329102,1717171834044,-849.79,0.0002757,2]
[328329103,1717171834053,-181.73,0.0002758,2]
[328329105,1717171834062,-176.95,0.00027618,2]
[328329107,1717171834072,-181.73,0.00027653,2]
[328329109,1717171834081,-181.73,0.00027726,2]
[328329111,1717171834090,-181.73,0.00027798,2]
[328329113,1717171834099,-181.73,0.00027871,2]
[328329115,1717171834109,-507.01055637,0.00029048,2]
[328329117,1717171834118,-168.7,0.00029049,2]
[328329119,1717171834127,-750.92998531,0.00029968,2]
[328329121,1717171834136,-500.0,0.0003,4]
[328329123,1717171834146,-500.0,0.0003,2]
[328329124,1717171834155,-500.0,0.0003,4]
[328329125,1717171834165,-238.9850631,0.00030037,2]
[328329126,1717171834174,-1423.27269271,0.00030037,2]
[328329127,1717171834188,-318.61061626,0.00030037,2]
[328329128,1717171834197,-151.09,0.00030126,2]
[328329129,1717171834206,-692.56,0.00030126,3]
[328329130,1717171834215,-482616.50756043,0.00030136,4]
[328329142,1717171837951,-444416.87270451,0.00030136,4]
[328329144,1717171837962,-86025.40956287,0.00030137,2]
[328329145,1717171837971,-1148.58,0.00030179,2]
[328329146,1717171837980,-2655.18782632,0.00030452,10]
[328329147,1717171837989,-1423.27269267,0.00030489,2]
[328329148,1717171837998,-2655.18782624,0.00030757,10]
[328329149,1717171838007,-238.9850631,0.00030828,2]
[328329150,1717171838016,-440.0,0.00030853,2]
[328329151,1717171838026,-1644.0,0.00030853,2]
[328329152,1717171838035,-614.0,0.00030853,2]
[328329153,1717171838044,-1224.0,0.00030853,2]
[328329154,1717171838053,-1423.27269267,0.00030941,2]
[328329155,1717171838062,-849.79,0.00031017,2]
[328329156,1717171838072,-2655.18782624,0.00031063,10]
[328329157,1717171838081,-176.339,0.00031063,2]
[328329158,1717171838091,-2655.18782624,0.00031368,10]
[328329159,1717171838100,-238.9850631,0.00031619,2]
[328329160,1717171838109,-3589.61376405,0.00031631,4]
[328329161,1717171838119,-2701.57735764,0.00031631,4]
[328329162,1717171838128,-325.10025076,0.00031632,4]
[328329163,1717171838137,-314.36267157,0.00031633,7]
[328329164,1717171838146,-2655.18782624,0.00031673,10]
[328329165,1717171838155,-2655.18782624,0.00031979,10]
[328329166,1717171838166,-150.05942183,0.00031998,7]
[328329167,1717171838175,-2655.18782624,0.00032284,10]
[328329168,1717171838188,-238.9850631,0.00032409,2]
[328329169,1717171838197,-746.54,0.00032466,2]
[328329170,1717171838207,-150.0,0.00032466,2]
[328329171,1717171838216,-327.46,0.00032466,2]
[328329172,1717171838225,-300.63,0.00032466,2]
[328329173,1717171838234,-352.63,0.00032466,2]
[328329174,1717171838243,-150.0,0.00032466,2]
[328329175,1717171838252,-352.63,0.00032466,2]
[328329176,1717171838262,-351.94,0.00032466,2]
[328329177,1717171838271,-150.0,0.00032466,2]
[328329178,1717171838280,-150.0,0.00032466,2]
[328329179,1717171838290,-150.0,0.00032466,2]
[328329180,1717171838299,-150.0,0.00032466,2]
[328329181,1717171838308,-300.0,0.00032478,2]
[328329182,1717171838317,-150.05942183,0.00032496,7]
[328329183,1717171838326,-2655.18782624,0.00032589,10]
[328329184,1717171838336,-209.26326702,0.00032658,4]
[328329185,1717171838346,-154.53665003,0.00032661,7]
[328329186,1717171838355,-176.339,0.00032693,2]
[328329187,1717171838365,-158.99557848,0.00032695,7]
[328329188,1717171838374,-209.26326702,0.00032726,4]
[328329189,1717171838384,-209.26326702,0.00032794,4]
[328329190,1717171838393,-2500.0,0.000328,2]
[328329191,1717171838402,-209.26326702,0.00032861,4]
[328329192,1717171838411,-500.0,0.00032876,11]
[328329193,1717171838420,-151.09,0.0003289,2]
[328329194,1717171838430,-2655.18782624,0.00032895,10]
[328329195,1717171838446,-2000.0,0.000329,2]
[328329196,1717171838455,-555.32663182,0.000329,2]
[328329197,1717171838464,-997.1,0.000329,2]
[328329198,1717171838474,-198304.61806669,0.000329,30]
[328329199,1717171838483,-209.26326702,0.00032929,4]
[328329200,1717171838491,-412.45466168,0.00032962,2]
[328329201,1717171838500,-209.26326702,0.00032997,5]
[328329202,1717171838510,-305.06064231,0.00033011,4]
[328329203,1717171838520,-500.0,0.00033012,10]
[328329204,1717171838530,-209.26326702,0.00033065,5]
[328329205,1717171838539,-209.26326702,0.00033132,5]
[328329206,1717171838548,-424.0,0.00033162,5]
[328329207,1717171838558,-151.09,0.00033178,2]
[328329208,1717171838567,-500.0,0.00033182,11]
[328329209,1717171838577,-500.0,0.00033182,11]
[328329210,1717171838586,-266.47285722,0.00033182,11]
[328329211,1717171838596,-500.0,0.00033184,11]
[328329212,1717171838605,-236.69,0.00033184,11]
[328329213,1717171838614,-755.37,0.00033184,11]
[328329214,1717171838623,-755.37,0.00033184,11]
[328329215,1717171838633,-755.37,0.00033184,11]
[328329216,1717171838642,-755.37,0.00033184,11]
[328329217,1717171838652,-165.43417787,0.00033186,11]
[328329218,1717171838661,-500.0,0.00033186,11]
[328329219,1717171838670,-500.0,0.00033186,11]
[328329220,1717171838680,-500.0,0.00033186,11]
[328329221,1717171838694,-500.0,0.00033186,11]
[328329222,1717171838704,-500.0,0.00033186,2]
[328329223,1717171838713,-500.0,0.00033186,2]
[328329224,1717171838722,-500.0,0.00033186,2]
[328329225,1717171838731,-500.0,0.00033186,2]
[328329226,1717171838740,-500.0,0.00033186,11]
[328329227,1717171838749,-472.56,0.00033186,11]
[328329228,1717171838759,-461.73848003,0.00033186,11]
[328329229,1717171838769,-548.48999999,0.00033187,11]
[328329230,1717171838778,-500.0,0.00033187,2]
[328329231,1717171838787,-755.37,0.00033187,11]
[328329232,1717171838796,-74826.05589714,0.00033188,2]
[328329233,1717171838809,-1006.297355,0.00033188,2]
[328329234,1717171838820,-1364.41967419,0.00033188,2]
[328329235,1717171838831,-41644.55837367,0.00033188,2]
[328329236,1717171838840,-100000.0,0.00033188,2]
[328329237,1717171838849,-157.16370876,0.000332,2]
[328329238,1717171838858,-825.97160186,0.000332,2]
[328329239,1717171838867,-209.26326702,0.000332,5]
[328329240,1717171838876,-2655.18782624,0.000332,10]
[328329241,1717171838885,-150.0,0.000332,7]
[328329242,1717171838894,-238.9850631,0.000332,2]
[328329244,1717171838904,-150.66714897,0.00033208,7]
[328329246,1717171838913,-4837.3571363,0.00033273,2]
[328329248,1717171838924,-539.9537403,0.00033277,4]
[328329250,1717171838933,-3072.41669679,0.00033277,4]
[328329252,1717171838945,-242.08245408,0.00033277,4]
[328329254,1717171838954,-11712.17217946,0.00033277,4]
[328329256,1717171838963,-4602.1181245,0.00033277,2]
[328329258,1717171838972,-4366.8791127,0.00033277,2]
[328329260,1717171838981,-4131.6401008,0.00033277,2]
[328329262,1717171838990,-3896.401089,0.00033277,2]
[328329264,1717171838999,-3661.1620772,0.00033277,2]
[328329265,1717171839009,-151.09,0.0003328,2]
[328329267,1717171839018,-500.0,0.00033287,2]
[328329269,1717171839027,-755.37,0.00033287,11]
[328329271,1717171839037,-621.70969,0.00033287,2]
[328329272,1717171839046,-150768.56358931,0.00033288,4]
[328329274,1717171839056,-4696.0,0.00033288,4]
[328329276,1717171839065,-9686.0,0.00033288,4]
[328329278,1717171839075,-5077.0,0.00033288,4]
[328329280,1717171839085,-1503.18,0.00033288,3]
[328329282,1717171839094,-2000.0,0.00033288,2]
[328329284,1717171839104,-200.0,0.00033288,2]
[328329286,1717171839114,-2000.0,0.00033289,2]
[328329288,1717171839124,-544.5817364,0.00033289,2]
[328329290,1717171839133,-755.37,0.00033289,11]
[328329292,1717171839143,-151.09,0.0003329,2]
[328329294,1717171839152,-212753.754432,0.0003329,4]
[328329296,1717171839162,-174.0,0.0003329,5]
[328329298,1717171839171,-151.09,0.0003329,2]
[328329300,1717171839180,-151.09,0.0003329,2]
[328329302,1717171839193,-151.09,0.0003329,2]
[328329304,1717171839202,-151.09,0.0003329,2]
[328329306,1717171839212,-151.09,0.0003329,2]
[328329308,1717171839222,-151.09,0.0003329,2]
[328329310,1717171839232,-151.09,0.0003329,2]
[328329312,1717171839242,-151.09,0.0003329,2]
[328329314,1717171839252,-151.09,0.0003329,2]
[328329316,1717171839262,-151.09,0.0003329,2]
[328329318,1717171839272,-151.09,0.0003329,2]
[328329320,1717171839281,-151.09,0.0003329,2]
[328329322,1717171839291,-151.09,0.0003329,2]
[328329324,1717171839301,-151.09,0.0003329,2]
[328329326,1717171839311,-151.09,0.0003329,2]
[328329327,1717171839324,-151.09,0.0003329,2]
[328329328,1717171839336,-151.09,0.0003329,2]
[328329329,1717171839346,-522.54033427,0.00033295,2]
[328329330,1717171839356,-155.85425681,0.00033296,4]
[328329331,1717171839365,-293.37808014,0.00033296,4]
[328329332,1717171839376,-155.92994263,0.00033296,4]
[328329333,1717171839386,-155.0,0.00033296,4]
[328329334,1717171839396,-155.68434507,0.00033296,4]
[328329335,1717171839405,-155.88468192,0.00033296,4]
[328329336,1717171839415,-186.79971435,0.00033296,7]
[328329337,1717171839424,-155.21224688,0.00033296,4]
[328329339,1717171839435,-155.37516686,0.00033296,2]
[328329341,1717171839457,-156.19232114,0.00033296,4]
[328329343,1717171839467,-250.48972718,0.00033296,4]
[328329345,1717171839477,-155.8215901,0.00033296,4]
[328329347,1717171839486,-262.76725722,0.00033296,4]
[328329349,1717171839496,-155.0,0.00033296,4]
[328329351,1717171839505,-156.19135071,0.00033296,4]
[328329353,1717171839514,-246.92247327,0.00033296,4]
[328329355,1717171839525,-1227.95940182,0.00033296,4]
[328329357,1717171839536,-264.52157603,0.00033296,4]
[328329359,1717171839547,-308.3572324,0.00033296,4]
[328329361,1717171839556,-155.0,0.00033296,4]
[328329363,1717171839566,-269.83407313,0.00033296,4]
[328329365,1717171839578,-599.06685493,0.00033296,4]
[328329367,1717171839587,-155.41846361,0.00033296,4]
[328329369,1717171839597,-155.29079437,0.00033296,4]
[328329371,1717171839607,-155.63830796,0.00033296,4]
[328329373,1717171839617,-157.51848632,0.00033296,4]
[328329375,1717171839626,-156.5811275,0.00033296,4]
[328329378,1717171839636,-3642.43124926,0.00033296,4]
[328329380,1717171839646,-157.77334761,0.00033296,4]
[328329382,1717171839656,-195.18261612,0.00033298,4]
[328329384,1717171839667,-208.31224876,0.00033298,4]
[328329386,1717171839676,-222.47397117,0.00033298,15]
[328329388,1717171839691,-198.97090401,0.00033298,4]
[328329390,1717171839700,-471.20130278,0.00033298,4]
[328329392,1717171839710,-155.26288329,0.00033298,2]
[328329394,1717171839719,-332.51735565,0.00033298,2]
[328329396,1717171839730,-4019.70433189,0.00033298,2]
[328329398,1717171839739,-263.30296889,0.00033298,4]
[328329400,1717171839749,-201.92791136,0.00033298,4]
[328329402,1717171839759,-2060.62366659,0.00033298,4]
[328329404,1717171839768,-264.96960524,0.00033298,4]
[328329406,1717171839778,-298.3262456,0.00033298,4]
[328329409,1717171839788,-292.72818215,0.00033298,4]
[328329411,1717171839798,-305.1459001,0.00033298,4]
[328329413,1717171839807,-321.96055433,0.00033298,4]
[328329415,1717171839817,-202.2218218,0.00033298,4]
[328329417,1717171839827,-485.57953486,0.00033298,4]
[328329419,1717171839836,-599.27979208,0.00033298,4]
[328329435,1717171840014,-182.55573596,0.00033298,4]
[328329436,1717171840024,-428.48017839,0.00033298,4]
[328329437,1717171840034,-155.0,0.00033298,4]
[328329438,1717171840044,-411.43521327,0.00033298,10]
[328329439,1717171840054,-263.49323242,0.00033298,6]
[328329440,1717171840064,-1000.0,0.00033298,4]
[328329441,1717171840074,-155.5188954,0.00033298,4]
[328329442,1717171840083,-155.0,0.00033298,4]
[328329443,1717171840093,-400.60003504,0.00033298,4]
[328329444,1717171840102,-10217.18053244,0.00033298,5]
[328329445,1717171840112,-6780.17431579,0.00033298,4]
[328329446,1717171840122,-1018.48309338,0.00033298,30]
[328329447,1717171840131,-204.83680168,0.00033298,4]
[328329448,1717171840141,-233.7079612,0.00033298,4]
[328329449,1717171840151,-789.28225633,0.00033298,2]
[328329450,1717171840160,-450.18660289,0.00033298,30]
[328329451,1717171840171,-622.42687039,0.00033298,4]
[328329452,1717171840180,-182.22277533,0.00033298,4]
[328329453,1717171840193,-274.58138911,0.00033298,4]
[328329454,1717171840202,-330.77791345,0.00033298,4]
[328329455,1717171840211,-3259.76942226,0.00033298,4]
[328329456,1717171840220,-480.94869717,0.00033298,4]
[328329457,1717171840229,-1449.92185933,0.00033298,4]
[328329458,1717171840238,-155.0,0.00033298,4]
[328329459,1717171840247,-155.20367113,0.00033298,4]
[328329460,1717171840257,-1480.16513772,0.00033298,4]
[328329461,1717171840266,-665.1399253,0.00033298,4]
[328329462,1717171840276,-686.40083079,0.00033298,4]
[328329463,1717171840285,-159.88443308,0.00033298,4]
[328329464,1717171840295,-792.71578886,0.00033298,4]
[328329465,1717171840305,-155.27811686,0.00033298,4]
[328329466,1717171840315,-195.06967946,0.00033298,4]
[328329467,1717171840324,-1215.97687186,0.00033298,4]
[328329468,1717171840334,-155.0,0.00033298,4]
[328329469,1717171840346,-155.0,0.00033298,4]
[328329470,1717171840356,-274.9801589,0.00033298,4]
[328329471,1717171840366,-155.33073223,0.00033298,2]
[328329472,1717171840376,-5697.68244742,0.00033298,4]
[328329473,1717171840385,-168.75338433,0.00033298,4]
[328329474,1717171840395,-3212.42301623,0.00033298,4]
[328329475,1717171840405,-895.58799992,0.00033298,4]
[328329476,1717171840415,-155.0,0.00033298,4]
[328329477,1717171840424,-157.74148691,0.00033298,4]
[328329479,1717171840440,-4116.86116669,0.00033298,4]
[328329480,1717171840450,-155.0,0.00033298,2]
[328329481,1717171840460,-894.65168545,0.00033298,2]
[328329482,1717171840469,-415.86251842,0.00033298,4]
[328329483,1717171840479,-295.92561526,0.00033298,4]
[328329484,1717171840488,-1381.55966992,0.00033298,14]
[328329485,1717171840497,-325.55682628,0.00033298,4]
[328329487,1717171840506,-3146.51488871,0.00033298,4]
[328329489,1717171840519,-200.75337891,0.00033298,4]
[328329491,1717171840528,-178.985317,0.00033298,4]
[328329493,1717171840538,-207.80085845,0.00033298,4]
[328329495,1717171840548,-243.06423143,0.00033298,4]
[328329497,1717171840558,-233.69264926,0.00033298,4]
[328329499,1717171840568,-534.0306169,0.00033298,4]
[328329502,1717171840578,-247.26648762,0.00033298,4]
[328329503,1717171840587,-755.37,0.00033298,11]
[328329505,1717171840596,-304.8099405,0.00033298,2]
[328329507,1717171840606,-3330.70757453,0.00033298,2]
[328329508,1717171840616,-5942.9070136,0.00033298,4]
[328329509,1717171840625,-10114.75162127,0.00033298,4]
[328329510,1717171840635,-448.2710794,0.00033298,4]
[328329511,1717171840645,-1539.38788922,0.00033298,4]
[328329512,1717171840655,-277.38315109,0.00033298,4]
[328329513,1717171840665,-173.66996539,0.00033298,4]
[328329514,1717171840674,-439.5455433,0.00033298,4]
[328329515,1717171840684,-1700.09398155,0.00033298,4]
[328329516,1717171840701,-1246.38219162,0.00033298,4]
[328329517,1717171840710,-430.50019001,0.00033299,7]
[328329518,1717171840719,-778.02154041,0.00033299,30]
[328329519,1717171840728,-755.37,0.00033299,11]
[328329520,1717171840738,-755.37,0.00033299,11]
[328329521,1717171840747,-755.37,0.00033299,11]
[328329522,1717171840756,-755.37,0.00033299,11]
[328329523,1717171840765,-755.37,0.00033299,11]
[328329524,1717171840774,-755.37,0.00033299,11]
[328329525,1717171840783,-755.37,0.00033299,11]
[328329526,1717171840792,-755.37,0.00033299,11]
[328329527,1717171840801,-755.37,0.00033299,11]
[328329528,1717171840811,-755.37,0.00033299,11]
[328329529,1717171840820,-755.37,0.00033299,11]
[328329530,1717171840830,-755.37,0.00033299,11]
[328329531,1717171840840,-755.37,0.00033299,11]
[328329532,1717171840849,-755.37,0.00033299,11]
[328329533,1717171840859,-755.37,0.00033299,11]
[328329534,1717171840868,-755.54149167,0.00033299,11]
[328329535,1717171840877,-150.0,0.00033299,7]
[328329536,1717171840887,-150.0,0.00033299,7]
[328329537,1717171840896,-159.90982101,0.00033299,7]
[328329538,1717171840906,-237.38641519,0.000333,30]
[328329539,1717171840915,-275.80607904,0.000333,5]
[328329540,1717171840925,-109638.07028859,0.000333,11]
[328329541,1717171840935,-26987.73553941,0.000333,5]
[328329542,1717171840955,-13403.80000001,0.000333,5]
[328329543,1717171840966,-1560.71765518,0.000333,5]
[328329544,1717171840977,-4933.60591859,0.000333,5]
[328329545,1717171840988,-457.06042095,0.000333,5]
[328329546,1717171841000,-4203.63404631,0.000333,5]
[328329547,1717171841011,-8266.56296862,0.000333,5]
[328329548,1717171841022,-3378.6,0.000333,5]
[328329549,1717171841033,-7372.40046361,0.000333,5]
[328329550,1717171841050,-1008.95461803,0.00030037,10]
[328329551,1717171841059,-2349.44538197,0.000333,5]
[328329552,1717171841090,-752.23054952,0.000333,5]
[328329553,1717171841101,-1178.1423483,0.000333,5]
[328329554,1717171841113,-367.92354084,0.000333,5]
[328329555,1717171841125,-66961.73459864,0.000333,5]
[328329556,1717171841136,-1115.95000516,0.000333,5]
[328329557,1717171841148,-379.31355091,0.000333,5]
[328329558,1717171841160,-1920.38628,0.000333,5]
[328329559,1717171841199,-674.258,0.00030907,2]
[328329560,1717171841208,-500.0,0.00032876,11]
[328329561,1717171841217,-500.0,0.00033182,11]
[328329562,1717171841227,-11840.342,0.000333,5]
[328329563,1717171841523,-603.099,0.000333,5]
[328329564,1717171841537,-2360.98849158,0.000333,5]
[328329565,1717171841549,-1201.23505853,0.000333,5]
[328329566,1717171841560,-11768.32918391,0.000333,5]
[328329567,1717171841571,-1279286.71992828,0.000333,5]
[328329568,1717171841583,-336109.99999995,0.000333,5]
[328329569,1717171841594,-523.7777695,0.000333,5]
[328329570,1717171842697,-300.747924,0.00031393,2]
[328329571,1717171842710,-1122.52476867,0.00031393,2]
[328329572,1717171842720,-500.0,0.00032876,11]
[328329573,1717171842729,-65527.47523133,0.000333,5]
[328329574,1717171842741,-507.8179903,0.000333,5]
[328329604,1717171843085,-1252795.82184647,0.000333,5]
[328329614,1717171843158,-707.3898016,0.000333,5]
[328329616,1717171843225,-427.18428536,0.000333,5]
[328329617,1717171843237,-537.88,0.000333,5]
[328329618,1717171843249,-768.44720034,0.000333,5]
[328329619,1717171843293,-337499.99999995,0.000333,5]
[328329620,1717171843304,-463.51367634,0.000333,5]
[328329621,1717171843316,-446.14741197,0.000333,5]
[328329673,1717171848801,-436.85825085,0.00029635,2]
[328329675,1717171848811,-300.85861027,0.00030135,2]
[328329677,1717171848820,-230.38934563,0.00030135,2]
[328329679,1717171848829,-1008.95461796,0.00030388,10]
[328329681,1717171848838,-1008.95461796,0.0003074,10]
[328329683,1717171848847,-510.42,0.0003075,2]
[328329685,1717171848857,-1423.27269267,0.00031844,2]
[328329686,1717171848867,-604.13,0.00032876,11]
[328329687,1717171848876,-500.0,0.00032876,11]
[328329688,1717171848885,-510.42,0.00033014,2]
[328329689,1717171848895,-500.0,0.00033186,11]
[328329690,1717171848904,-1079.8739065,0.00033298,4]
[328329691,1717171848914,-681.20420242,0.00033299,4]
[328329692,1717171848924,-2825.61754288,0.00033299,4]
[328329693,1717171848933,-535.0,0.000333,5]
[328329694,1717171848944,-21173.50041201,0.000333,5]
[328329695,1717171848956,-8117.02753792,0.000333,5]
[328329696,1717171848968,-691.39429054,0.000333,5]
[328329697,1717171848979,-27688.6379999,0.000333,5]
[328329698,1717171848991,-2621.25834141,0.000333,5]
[328329699,1717171849002,-21807.71404196,0.000333,5]
[328329700,1717171849014,-254.22747458,0.000333,5]
[328329701,1717171849027,-1382.46427073,0.000333,5]
[328329702,1717171849038,-7430.73724119,0.000333,5]
[328329703,1717171849118,-432.31637903,0.000333,5]
[328329704,1717171849130,-1021048.04891226,0.000333,5]
[328329705,1717171849142,-10006.00200906,0.000333,5]
[328329706,1717171849154,-7195.91736941,0.000333,5]
[328329707,1717171849171,-622.71,0.00032876,11]
[328329708,1717171849181,-1514.13594044,0.000333,5]
[328329709,1717171849194,-1901.5288579,0.000333,5]
[328329710,1717171849205,-928.97171414,0.000333,5]
[328329711,1717171849216,-200797.031787,0.000333,5]
[328329712,1717171849227,-16802.24999998,0.000333,5]
[328329713,1717171849238,-6701.0,0.000333,5]
[328329714,1717171849249,-672.25773625,0.000333,5]
[328329715,1717171849259,-354.37716682,0.000333,5]
[328329716,1717171849270,-1090.27219311,0.000333,5]
[328329717,1717171849281,-779.91478166,0.000333,5]
[328329718,1717171849292,-1164.01677265,0.000333,5]
[328329719,1717171849303,-295.78388584,0.000333,5]
[328329720,1717171849313,-258.04998436,0.000333,5]
[328329721,1717171849325,-2356.13919125,0.000333,5]
[328329722,1717171849336,-24767.70944855,0.000333,5]
[328329723,1717171849348,-4323.88525768,0.000333,5]
[328329724,1717171852383,-1423.27269267,0.00032296,2]
[328329725,1717171852393,-500.0,0.00032876,11]
[328329726,1717171852402,-500.0,0.00033186,11]
[328329727,1717171852412,-865.85221642,0.00033298,3]
[328329728,1717171852421,-170.59798751,0.00033299,4]
[328329729,1717171852432,-410.72735958,0.00033299,4]
[328329730,1717171852445,-489.1202774,0.00033299,4]
[328329731,1717171852455,-13957.54376987,0.000333,5]
[328329733,1717171852467,-8579.90317922,0.000333,5]
[328329734,1717171852479,-49209.64401924,0.000333,5]
[328329735,1717171852489,-2666.44448733,0.000333,5]
[328329736,1717171852501,-456.6398568,0.000333,5]
[328329737,1717171852514,-863.19148836,0.000333,5]